fUSD/lending_fUSD_20260406
["ID","MTS","AMOUNT","RATE_DAILY","PERIOD"]
[419934020,1775519456903,-153.716728,0.00013844,2]
[419934021,1775519456916,-157.411895,0.00013844,2]
[419934022,1775519456933,-151.0,0.00013844,2]
[419934023,1775519456950,-153.716728,0.00013844,2]
[419934024,1775519456966,-153.716728,0.00013844,2]
[419934025,1775519456983,-151.0,0.00013844,2]
[419934026,1775519456998,-151.0,0.00013844,2]
[419934027,1775519457009,-151.0,0.00013844,2]
[419934028,1775519457025,-151.0,0.00013844,2]
[419934029,1775519457038,-151.0,0.00013844,2]
[419934030,1775519457056,-151.0,0.00013844,2]
[419934031,1775519457071,-151.0,0.00013844,2]
[419934032,1775519457091,-155.746075,0.00013844,2]
[419934033,1775519457104,-151.0,0.00013844,2]
[419934034,1775519457117,-151.0,0.00013844,2]
[419934035,1775519457131,-151.0,0.00013844,2]
[419934036,1775519457145,-151.0,0.00013844,2]
[419934037,1775519457158,-151.0,0.00013844,2]
[419934038,1775519457208,-151.0,0.00013844,2]
[419934039,1775519457226,-151.0,0.00013844,2]
[419934040,1775519457243,-151.0,0.00013844,2]
[419934041,1775519457259,-151.0,0.00013844,2]
[419934042,1775519457276,-151.0,0.00013844,2]
[419934043,1775519457291,-151.0,0.00013844,2]
[419934044,1775519457309,-151.0,0.00013844,2]
[419934045,1775519457325,-151.0,0.00013844,2]
[419934046,1775519457342,-416.609906,0.00013844,2]
[419934047,1775519457357,-1202.256682,0.00013844,2]
[419934048,1775519457372,-416.609906,0.00013844,2]
[419934049,1775519457387,-1202.256682,0.00013844,2]
[419934050,1775519457403,-416.609906,0.00013844,2]
[419934051,1775519457419,-1202.256682,0.00013844,2]
[419934052,1775519457435,-151.0,0.00013844,2]
[419934053,1775519457451,-454.96662,0.00013844,2]
[419934054,1775519457467,-416.609906,0.00013844,2]
[419934055,1775519457481,-1202.256682,0.00013844,2]
[419934056,1775519457497,-454.96662,0.00013844,2]
[419934057,1775519457511,-151.0,0.00013844,2]
[419934058,1775519457525,-395.055722,0.00013844,2]
[419934059,1775519457540,-454.96662,0.00013844,2]
[419934060,1775519457553,-2515.401827,0.00013844,2]
[419934061,1775519457568,-280.584218,0.00013844,2]
[419934062,1775519457584,-454.96662,0.00013844,2]
[419934063,1775519457600,-395.055722,0.00013844,2]
[419934064,1775519457614,-2515.401827,0.00013844,2]
[419934065,1775519457629,-280.584218,0.00013844,2]
[419934066,1775519457643,-395.055722,0.00013844,2]
[419934067,1775519457658,-2515.401827,0.00013844,2]
[419934068,1775519457672,-280.584218,0.00013844,2]
[419934069,1775519457687,-200.672779,0.00013844,2]
[419934070,1775519457701,-395.055722,0.00013844,2]
[419934071,1775519457715,-2515.401827,0.00013844,2]
[419934072,1775519457730,-280.584218,0.00013844,2]
[419934073,1775519457744,-766.93164,0.00013844,2]
[419934074,1775519457758,-436.880734,0.00013844,2]
[419934075,1775519457773,-766.93164,0.00013844,2]
[419934076,1775519457787,-436.880734,0.00013844,2]
[419934077,1775519457801,-766.93164,0.00013844,2]
[419934078,1775519457816,-436.880734,0.00013844,2]
[419934079,1775519457829,-766.93164,0.00013844,2]
[419934080,1775519457844,-436.880734,0.00013844,2]
[419934081,1775519457858,-658.929163,0.00013844,2]
[419934082,1775519457872,-658.929163,0.00013844,2]
[419934083,1775519457886,-658.929163,0.00013844,2]
[419934084,1775519457900,-151.0,0.00013844,2]
[419934085,1775519457914,-658.929163,0.00013844,2]
[419934086,1775519457928,-200.0,0.00013847,2]
[419934087,1775519457942,-200.0,0.00013847,2]
[419934088,1775519457957,-10652.17309792,0.00013855,2]
[419934089,1775519457972,-500.0,0.00013855,2]
[419934090,1775519457985,-151.0,0.00013855,2]
[419934091,1775519457999,-500.0,0.00013873,2]
[419934092,1775519458013,-212.97420605,0.00013909,2]
[419934093,1775519458027,-500.0,0.00013909,2]
[419934094,1775519458041,-581.37624855,0.00013909,2]
[419934095,1775519458055,-500.0,0.00013909,2]
[419934096,1775519458069,-165.53229264,0.00013909,2]
[419934097,1775519458083,-500.0,0.00013909,2]
[419934098,1775519458097,-514.06809123,0.00013909,2]
[419934099,1775519458112,-500.0,0.00013909,2]
[419934100,1775519458126,-298.55364435,0.00013909,2]
[419934101,1775519458140,-500.0,0.00013909,2]
[419934102,1775519458154,-500.0,0.00013909,2]
[419934103,1775519458169,-500.0,0.00013909,2]
[419934104,1775519458183,-500.0,0.00013909,2]
[419934105,1775519458196,-500.0,0.00013909,2]
[419934106,1775519458210,-336.35702483,0.00013909,2]
[419934107,1775519458224,-500.0,0.00013909,2]
[419934108,1775519458238,-500.0,0.00013909,2]
[419934109,1775519458253,-500.0,0.00013909,2]
[419934110,1775519458267,-500.0,0.00013909,2]
[419934111,1775519458281,-500.0,0.00013909,2]
[419934112,1775519458295,-500.0,0.00013909,2]
[419934113,1775519458309,-500.0,0.00013909,2]
[419934114,1775519458323,-500.0,0.00013909,2]
[419934115,1775519458337,-500.0,0.00013909,2]
[419934116,1775519458350,-500.0,0.00013909,2]
[419934117,1775519458364,-500.0,0.00013909,2]
[419934118,1775519458378,-500.0,0.00013909,2]
[419934119,1775519458392,-11046.30350255,0.0001391,2]
[419934120,1775519458406,-500.0,0.0001391,2]
[419934121,1775519458420,-151.0,0.0001391,2]
[419934122,1775519458433,-501.0,0.00013918,2]
[419934123,1775519458447,-785.79,0.00013932,2]
[419934124,1775519458461,-500.0,0.00013945,2]
[419934125,1775519458474,-200.0,0.00013948,2]
[419934126,1775519458489,-11455.01673214,0.00013965,2]
[419934127,1775519458502,-500.0,0.00013965,2]
[419934128,1775519458515,-151.0,0.00013965,2]
[419934129,1775519458529,-150.0,0.00013973,2]
[419934130,1775519458545,-150.0,0.00013973,2]
[419934131,1775519458558,-150.0,0.00013973,2]
[419934132,1775519458571,-150.0,0.00013973,2]
[419934133,1775519458584,-150.0,0.00013973,2]
[419934134,1775519458598,-166.66,0.00013973,2]
[419934135,1775519458611,-985.59,0.00013973,2]
[419934136,1775519458624,-200.0,0.00013985,2]
[419934137,1775519458638,-200.0,0.00013985,2]
[419934138,1775519458652,-1600.0,0.00013995,2]
[419934139,1775519458667,-188.9591,0.00014,2]
[419934140,1775519458680,-208.602096,0.00014,2]
[419934141,1775519458693,-855.85192254,0.00014006,2]
[419934142,1775519458707,-907.9172207,0.00014007,2]
[419934143,1775519458721,-3689.84030244,0.0001402,2]
[419934144,1775519458735,-500.0,0.0001402,2]
[419934145,1775519458749,-151.0,0.0001402,2]
[419934146,1775519458762,-192.73866301,0.00014023,2]
[419934147,1775519458776,-3313.59409053,0.00014023,2]
[419934148,1775519458789,-155.05158054,0.0001404,2]
[419934149,1775519458804,-155.0,0.00014041,2]
[419934150,1775519458818,-6150.92905776,0.00014055,2]
[419934151,1775519458842,-4562.35892846,0.00014055,2]
[419934152,1775519458855,-500.0,0.00014075,2]
[419934153,1775519458869,-151.0,0.00014075,2]
[419934154,1775519458884,-1300.0,0.00014082,2]
[419934155,1775519458898,-3000.0,0.00014082,2]
[419934156,1775519458913,-152.0,0.00014091,8]
[419934157,1775519458927,-151.0,0.00014103,2]
[419934158,1775519458940,-151.0,0.00014103,2]
[419934159,1775519458954,-151.0,0.00014103,2]
[419934160,1775519458968,-151.0,0.00014103,2]
[419934161,1775519458982,-151.0,0.00014103,2]
[419934162,1775519458995,-151.0,0.00014103,2]
[419934163,1775519459010,-232.534013,0.00014103,2]
[419934164,1775519459023,-151.0,0.00014103,2]
[419934165,1775519459037,-232.534013,0.00014103,2]
[419934166,1775519459051,-151.0,0.00014103,2]
[419934167,1775519459064,-232.534013,0.00014103,2]
[419934168,1775519459077,-205.295103,0.00014103,2]
[419934169,1775519459090,-232.534013,0.00014103,2]
[419934170,1775519459105,-182.98362,0.00014103,2]
[419934171,1775519459117,-545.651646,0.00014103,2]
[419934172,1775519459131,-151.0,0.00014103,2]
[419934173,1775519459144,-545.651646,0.00014103,2]
[419934174,1775519459157,-151.0,0.00014103,2]
[419934175,1775519459170,-151.0,0.00014103,2]
[419934176,1775519459182,-545.651646,0.00014103,2]
[419934177,1775519459195,-151.0,0.00014103,2]
[419934178,1775519459208,-545.651646,0.00014103,2]
[419934179,1775519459221,-585.190594,0.00014103,2]
[419934180,1775519459234,-151.0,0.00014103,2]
[419934181,1775519459247,-151.0,0.00014103,2]
[419934182,1775519459260,-585.190594,0.00014103,2]
[419934183,1775519459273,-585.190594,0.00014103,2]
[419934184,1775519459286,-151.0,0.00014103,2]
[419934185,1775519459299,-585.190594,0.00014103,2]
[419934186,1775519459314,-151.0,0.00014103,2]
[419934187,1775519459327,-234.889848,0.00014103,2]
[419934188,1775519459340,-1071.177262,0.00014103,2]
[419934189,1775519459353,-1071.177262,0.00014103,2]
[419934190,1775519459367,-376.495085,0.00014103,2]
[419934191,1775519459381,-234.889848,0.00014103,2]
[419934192,1775519459395,-1071.177262,0.00014103,2]
[419934193,1775519459409,-376.495085,0.00014103,2]
[419934194,1775519459422,-234.889848,0.00014103,2]
[419934195,1775519459435,-1071.177262,0.00014103,2]
[419934196,1775519459447,-234.889848,0.00014103,2]
[419934197,1775519459459,-376.495085,0.00014103,2]
[419934198,1775519459471,-376.495085,0.00014103,2]
[419934199,1775519459484,-305.126816,0.00014103,2]
[419934200,1775519459496,-305.126816,0.00014103,2]
[419934201,1775519459509,-305.126816,0.00014103,2]
[419934202,1775519459521,-305.126816,0.00014103,2]
[419934203,1775519459534,-166.66,0.00014103,2]
[419934204,1775519459546,-150.0,0.00014104,2]
[419934205,1775519459558,-150.0,0.00014104,2]
[419934206,1775519459571,-150.0,0.00014104,2]
[419934207,1775519459583,-150.0,0.00014104,2]
[419934208,1775519459597,-150.0,0.00014104,2]
[419934209,1775519459614,-150.0,0.00014104,2]
[419934210,1775519459627,-150.0,0.00014104,2]
[419934211,1775519459639,-150.0,0.00014104,2]
[419934212,1775519459651,-151.0,0.00014107,2]
[419934213,1775519459665,-19481.37963714,0.00014107,2]
[419934214,1775519459677,-567.606168,0.00014107,2]
[419934215,1775519459689,-151.0,0.00014107,2]
[419934216,1775519459701,-567.606168,0.00014107,2]
[419934217,1775519459713,-151.0,0.00014107,2]
[419934218,1775519459726,-567.606168,0.00014107,2]
[419934219,1775519459740,-553.482395,0.00014107,2]
[419934220,1775519459753,-151.0,0.00014107,2]
[419934221,1775519459765,-567.606168,0.00014107,2]
[419934222,1775519459778,-553.482395,0.00014107,2]
[419934223,1775519459791,-553.482395,0.00014107,2]
[419934224,1775519459804,-553.482395,0.00014107,2]
[419934225,1775519459818,-151.0,0.00014107,2]
[419934226,1775519459831,-1324.90173,0.00014107,2]
[419934227,1775519459844,-151.0,0.00014107,2]
[419934228,1775519459858,-1324.90173,0.00014107,2]
[419934229,1775519459870,-310.094312,0.00014107,2]
[419934230,1775519459884,-310.094312,0.00014107,2]
[419934231,1775519459897,-1324.90173,0.00014107,2]
[419934232,1775519459910,-221.193058,0.00014107,2]
[419934233,1775519459922,-1324.90173,0.00014107,2]
[419934234,1775519459934,-310.094312,0.00014107,2]
[419934235,1775519459946,-151.0,0.00014107,2]
[419934236,1775519459959,-151.0,0.00014107,2]
[419934237,1775519459971,-221.193058,0.00014107,2]
[419934238,1775519459983,-310.094312,0.00014107,2]
[419934239,1775519459995,-151.0,0.00014107,2]
[419934240,1775519460008,-151.0,0.00014107,2]
[419934241,1775519460020,-221.193058,0.00014107,2]
[419934242,1775519460034,-221.193058,0.00014107,2]
[419934243,1775519460049,-232.102072,0.00014107,2]
[419934244,1775519460061,-232.102072,0.00014107,2]
[419934245,1775519460074,-232.102072,0.00014107,2]
[419934246,1775519460089,-232.102072,0.00014107,2]
[419934247,1775519460102,-151.0,0.00014107,2]
[419934248,1775519460124,-151.0,0.00014107,2]
[419934249,1775519460147,-151.0,0.00014107,2]
[419934250,1775519460163,-151.0,0.00014107,2]
[419934251,1775519460179,-151.0,0.00014107,2]
[419934252,1775519460195,-151.0,0.00014107,2]
[419934253,1775519460211,-297.949821,0.00014107,2]
[419934254,1775519460226,-1550.160643,0.00014107,2]
[419934255,1775519460242,-1550.160643,0.00014107,2]
[419934256,1775519460258,-151.0,0.00014107,2]
[419934257,1775519460279,-1550.160643,0.00014107,2]
[419934258,1775519460294,-1550.160643,0.00014107,2]
[419934259,1775519460308,-586.836056,0.00014107,2]
[419934260,1775519460324,-586.836056,0.00014107,2]
[419934261,1775519460338,-342.396575,0.00014107,2]
[419934262,1775519460351,-586.836056,0.00014107,2]
[419934263,1775519460365,-342.396575,0.00014107,2]
[419934264,1775519460381,-948.836594,0.00014107,2]
[419934265,1775519460395,-342.396575,0.00014107,2]
[419934266,1775519460410,-948.836594,0.00014107,2]
[419934267,1775519460425,-151.0,0.00014107,2]
[419934268,1775519460437,-151.0,0.00014107,2]
[419934269,1775519460451,-586.836056,0.00014107,2]
[419934270,1775519460464,-948.836594,0.00014107,2]
[419934271,1775519460477,-948.836594,0.00014107,2]
[419934272,1775519460491,-151.0,0.00014107,2]
[419934273,1775519460503,-166.66,0.0001411,2]
[419934274,1775519460516,-304.93834689,0.00014121,2]
[419934275,1775519460529,-1000.0,0.00014121,2]
[419934276,1775519460542,-1000.0,0.00014121,2]
[419934277,1775519460555,-5787.0,0.00014123,2]
[419934278,1775519460566,-151.0,0.00014123,2]
[419934279,1775519460579,-151.0,0.00014123,2]
[419934280,1775519460592,-151.0,0.00014123,2]
[419934281,1775519460610,-151.0,0.00014123,2]
[419934282,1775519460628,-151.0,0.00014123,2]
[419934283,1775519460645,-151.0,0.00014123,2]
[419934284,1775519460659,-151.0,0.00014123,2]
[419934285,1775519460676,-151.0,0.00014123,2]
[419934286,1775519460693,-151.0,0.00014123,2]
[419934287,1775519460708,-151.0,0.00014123,2]
[419934288,1775519460722,-151.0,0.00014123,2]
[419934289,1775519460737,-151.0,0.00014123,2]
[419934290,1775519460752,-1505.228735,0.00014123,2]
[419934291,1775519460766,-151.0,0.00014123,2]
[419934292,1775519460781,-1505.228735,0.00014123,2]
[419934293,1775519460796,-151.0,0.00014123,2]
[419934294,1775519460811,-272.199966,0.00014123,2]
[419934295,1775519460824,-1505.228735,0.00014123,2]
[419934296,1775519460838,-151.0,0.00014123,2]
[419934297,1775519460851,-272.199966,0.00014123,2]
[419934298,1775519460865,-1505.228735,0.00014123,2]
[419934299,1775519460879,-276.32838,0.00014123,2]
[419934300,1775519460892,-272.199966,0.00014123,2]
[419934301,1775519460905,-276.32838,0.00014123,2]
[419934302,1775519460919,-272.199966,0.00014123,2]
[419934303,1775519460933,-276.32838,0.00014123,2]
[419934304,1775519460946,-1715.941805,0.00014123,2]
[419934305,1775519460959,-251.711372,0.00014123,2]
[419934306,1775519460972,-276.32838,0.00014123,2]
[419934307,1775519460986,-1715.941805,0.00014123,2]
[419934308,1775519461000,-155.71659,0.00014123,2]
[419934309,1775519461013,-520.378138,0.00014123,2]
[419934310,1775519461026,-729.469798,0.00014123,2]
[419934311,1775519461038,-652.466479,0.00014123,2]
[419934312,1775519461052,-1715.941805,0.00014123,2]
[419934313,1775519461074,-225.159939,0.00014123,2]
[419934314,1775519461090,-155.71659,0.00014123,2]
[419934315,1775519461106,-520.378138,0.00014123,2]
[419934316,1775519461120,-191.515392,0.00014123,2]
[419934317,1775519461137,-652.466479,0.00014123,2]
[419934318,1775519461154,-1715.941805,0.00014123,2]
[419934319,1775519461169,-225.159939,0.00014123,2]
[419934320,1775519461185,-151.0,0.00014123,2]
[419934321,1775519461199,-155.71659,0.00014123,2]
[419934322,1775519461215,-520.378138,0.00014123,2]
[419934323,1775519461230,-191.515392,0.00014123,2]
[419934324,1775519461245,-652.466479,0.00014123,2]
[419934325,1775519461260,-160.827437,0.00014123,2]
[419934326,1775519461275,-225.159939,0.00014123,2]
[419934327,1775519461290,-729.469798,0.00014123,2]
[419934328,1775519461304,-151.0,0.00014123,2]
[419934329,1775519461319,-155.71659,0.00014123,2]
[419934330,1775519461333,-261.551929,0.00014123,2]
[419934331,1775519461347,-520.378138,0.00014123,2]
[419934332,1775519461361,-191.515392,0.00014123,2]
[419934333,1775519461375,-151.0,0.00014123,2]
[419934334,1775519462549,-652.466479,0.00014123,2]
[419934335,1775519462567,-160.827437,0.00014123,2]
[419934336,1775519462579,-225.159939,0.00014123,2]
[419934337,1775519462589,-729.469798,0.00014123,2]
[419934338,1775519462601,-151.0,0.00014123,2]
[419934339,1775519462610,-151.0,0.00014123,2]
[419934340,1775519462622,-151.0,0.00014123,2]
[419934341,1775519462632,-261.551929,0.00014123,2]
[419934342,1775519462642,-191.515392,0.00014123,2]
[419934343,1775519462651,-729.469798,0.00014123,2]
[419934344,1775519462661,-151.0,0.00014123,2]
[419934345,1775519462671,-151.0,0.00014123,2]
[419934346,1775519462688,-261.551929,0.00014123,2]
[419934347,1775519462699,-151.0,0.00014123,2]
[419934348,1775519462708,-160.827437,0.00014123,2]
[419934349,1775519462719,-261.551929,0.00014123,2]
[419934350,1775519462729,-151.0,0.00014123,2]
[419934351,1775519462739,-160.827437,0.00014123,2]
[419934352,1775519462751,-151.0,0.00014123,2]
[419934353,1775519462763,-151.0,0.00014123,2]
[419934354,1775519462772,-151.0,0.00014123,2]
[419934355,1775519462783,-151.0,0.00014123,2]
[419934356,1775519462793,-151.0,0.00014123,2]
[419934357,1775519462804,-151.0,0.00014123,2]
[419934358,1775519462814,-190.410851,0.00014123,2]
[419934359,1775519462824,-190.410851,0.00014123,2]
[419934360,1775519462834,-190.410851,0.00014123,2]
[419934361,1775519462845,-254.207423,0.00014123,2]
[419934362,1775519462856,-190.410851,0.00014123,2]
[419934363,1775519462866,-254.207423,0.00014123,2]
[419934364,1775519462876,-254.207423,0.00014123,2]
[419934365,1775519462886,-254.207423,0.00014123,2]
[419934366,1775519462897,-300.261063,0.00014123,2]
[419934367,1775519462907,-300.261063,0.00014123,2]
[419934368,1775519462918,-162.535463,0.00014123,2]
[419934369,1775519462929,-387.488501,0.00014123,2]
[419934370,1775519462939,-366.764517,0.00014123,2]
[419934371,1775519462951,-151.0,0.00014123,2]
[419934372,1775519462962,-300.261063,0.00014123,2]
[419934373,1775519462972,-162.535463,0.00014123,2]
[419934374,1775519462983,-387.488501,0.00014123,2]
[419934375,1775519462994,-366.764517,0.00014123,2]
[419934376,1775519463005,-300.261063,0.00014123,2]
[419934377,1775519463016,-162.535463,0.00014123,2]
[419934378,1775519463026,-366.764517,0.00014123,2]
[419934379,1775519463037,-387.488501,0.00014123,2]
[419934380,1775519463048,-151.0,0.00014123,2]
[419934381,1775519463058,-162.535463,0.00014123,2]
[419934382,1775519463069,-366.764517,0.00014123,2]
[419934383,1775519463080,-387.488501,0.00014123,2]
[419934384,1775519463090,-151.0,0.00014123,2]
[419934385,1775519463100,-151.0,0.00014123,2]
[419934386,1775519463110,-200.0,0.00014125,2]
[419934387,1775519463120,-200.0,0.00014125,2]
[419934388,1775519463131,-500.0,0.0001413,2]
[419934389,1775519463141,-151.0,0.0001413,2]
[419934390,1775519463151,-151.0,0.00014155,2]
[419934391,1775519463161,-151.0,0.00014155,2]
[419934392,1775519463170,-151.0,0.00014155,2]
[419934393,1775519463180,-151.0,0.00014155,2]
[419934394,1775519463190,-151.0,0.00014155,2]
[419934395,1775519463201,-169.369347,0.00014155,2]
[419934396,1775519463211,-151.0,0.00014155,2]
[419934397,1775519463222,-151.0,0.00014155,2]
[419934398,1775519463232,-151.0,0.00014155,2]
[419934399,1775519463242,-310.015346,0.00014155,2]
[419934400,1775519463253,-151.0,0.00014155,2]
[419934401,1775519463264,-310.015346,0.00014155,2]
[419934402,1775519463275,-310.015346,0.00014155,2]
[419934403,1775519463285,-151.0,0.00014155,2]
[419934404,1775519463296,-310.015346,0.00014155,2]
[419934405,1775519463306,-151.0,0.00014155,2]
[419934406,1775519463316,-151.0,0.00014155,2]
[419934407,1775519463326,-1038.983212,0.00014155,2]
[419934408,1775519463338,-1038.983212,0.00014155,2]
[419934409,1775519463348,-1038.983212,0.00014155,2]
[419934410,1775519463359,-1038.983212,0.00014155,2]
[419934411,1775519463369,-151.0,0.00014159,2]
[419934412,1775519463379,-151.0,0.00014159,2]
[419934413,1775519463389,-151.0,0.00014159,2]
[419934414,1775519463399,-151.0,0.00014159,2]
[419934415,1775519463409,-151.0,0.00014159,2]
[419934416,1775519463419,-151.0,0.00014159,2]
[419934417,1775519463430,-151.0,0.00014159,2]
[419934418,1775519463440,-151.0,0.00014159,2]
[419934419,1775519463449,-151.0,0.00014159,2]
[419934420,1775519463459,-151.0,0.00014159,2]
[419934421,1775519463469,-151.0,0.00014159,2]
[419934422,1775519463479,-151.0,0.00014159,2]
[419934423,1775519463488,-151.0,0.00014159,2]
[419934424,1775519463498,-151.0,0.00014159,2]
[419934425,1775519463508,-151.0,0.00014159,2]
[419934426,1775519463518,-151.0,0.00014159,2]
[419934427,1775519463534,-151.0,0.00014159,2]
[419934428,1775519463544,-151.0,0.00014159,2]
[419934429,1775519463554,-151.0,0.00014159,2]
[419934430,1775519463564,-151.0,0.00014159,2]
[419934431,1775519463574,-151.0,0.00014159,2]
[419934432,1775519463585,-159.169124,0.00014159,2]
[419934433,1775519463595,-151.0,0.00014159,2]
[419934434,1775519463605,-220.353408,0.00014159,2]
[419934435,1775519463615,-201.754288,0.00014159,2]
[419934436,1775519463625,-201.754288,0.00014159,2]
[419934437,1775519463635,-201.754288,0.00014159,2]
[419934438,1775519463645,-201.754288,0.00014159,2]
[419934439,1775519463656,-416.609906,0.00014159,2]
[419934440,1775519463666,-1202.256682,0.00014159,2]
[419934441,1775519463676,-416.609906,0.00014159,2]
[419934442,1775519463686,-1202.256682,0.00014159,2]
[419934443,1775519463697,-416.609906,0.00014159,2]
[419934444,1775519463707,-1202.256682,0.00014159,2]
[419934445,1775519463718,-151.0,0.00014159,2]
[419934446,1775519463728,-454.96662,0.00014159,2]
[419934447,1775519463739,-416.609906,0.00014159,2]
[419934448,1775519463750,-1202.256682,0.00014159,2]
[419934449,1775519463760,-454.96662,0.00014159,2]
[419934450,1775519463770,-151.0,0.00014159,2]
[419934451,1775519463779,-395.055722,0.00014159,2]
[419934452,1775519463788,-454.96662,0.00014159,2]
[419934453,1775519463799,-2515.401827,0.00014159,2]
[419934454,1775519463812,-280.584218,0.00014159,2]
[419934455,1775519463823,-454.96662,0.00014159,2]
[419934456,1775519463834,-395.055722,0.00014159,2]
[419934457,1775519463847,-2515.401827,0.00014159,2]
[419934458,1775519463858,-395.055722,0.00014159,2]
[419934459,1775519463869,-280.584218,0.00014159,2]
[419934460,1775519463879,-2515.401827,0.00014159,2]
[419934461,1775519463889,-280.584218,0.00014159,2]
[419934462,1775519463899,-395.055722,0.00014159,2]
[419934463,1775519463909,-2515.401827,0.00014159,2]
[419934464,1775519463919,-280.584218,0.00014159,2]
[419934465,1775519463929,-766.93164,0.00014159,2]
[419934466,1775519463939,-436.880734,0.00014159,2]
[419934467,1775519463952,-766.93164,0.00014159,2]
[419934468,1775519463962,-436.880734,0.00014159,2]
[419934469,1775519463973,-766.93164,0.00014159,2]
[419934470,1775519463984,-436.880734,0.00014159,2]
[419934471,1775519463997,-766.93164,0.00014159,2]
[419934472,1775519464007,-436.880734,0.00014159,2]
[419934473,1775519464017,-658.929163,0.00014159,2]
[419934474,1775519464028,-658.929163,0.00014159,2]
[419934475,1775519464038,-658.929163,0.00014159,2]
[419934476,1775519464049,-151.0,0.00014159,2]
[419934477,1775519464060,-658.929163,0.00014159,2]
[419934478,1775519464071,-151.0,0.00014168,2]
[419934479,1775519464081,-151.0,0.00014168,2]
[419934480,1775519464091,-175.566929,0.00014168,2]
[419934481,1775519464102,-175.566929,0.00014168,2]
[419934482,1775519464112,-175.566929,0.00014168,2]
[419934483,1775519464121,-175.566929,0.00014168,2]
[419934484,1775519464131,-153.716728,0.00014168,2]
[419934485,1775519464143,-153.716728,0.00014168,2]
[419934486,1775519464153,-151.0,0.00014168,2]
[419934487,1775519464163,-153.716728,0.00014168,2]
[419934488,1775519464174,-153.716728,0.00014168,2]
[419934489,1775519464183,-151.0,0.00014168,2]
[419934490,1775519464193,-151.0,0.00014168,2]
[419934491,1775519464203,-151.0,0.00014168,2]
[419934492,1775519464213,-187.818816,0.00014168,2]
[419934493,1775519464223,-251.83,0.00014169,2]
[419934494,1775519464233,-354.53684714,0.00014183,2]
[419934495,1775519464243,-200.0,0.00014183,2]
[419934496,1775519464252,-1428.38747117,0.00014183,2]
[419934497,1775519464264,-771.01748645,0.00014183,2]
[419934498,1775519464274,-181.08010149,0.00014183,2]
[419934499,1775519464283,-693.3919763,0.00014183,2]
[419934500,1775519464293,-290.26104003,0.00014183,2]
[419934501,1775519464303,-500.0,0.00014185,2]
[419934502,1775519464314,-151.0,0.00014185,2]
[419934503,1775519464325,-1116.0,0.00014195,2]
[419934504,1775519464337,-151.0,0.00014206,2]
[419934505,1775519464348,-161.475832,0.00014206,2]
[419934506,1775519464361,-151.0,0.00014206,2]
[419934507,1775519464372,-204.671139,0.00014206,2]
[419934508,1775519464383,-204.671139,0.00014206,2]
[419934509,1775519464394,-204.671139,0.00014206,2]
[419934510,1775519464404,-204.671139,0.00014206,2]
[419934511,1775519464416,-151.0,0.00014206,2]
[419934512,1775519464427,-207.32346,0.00014206,2]
[419934513,1775519464438,-151.0,0.00014206,2]
[419934514,1775519464448,-151.0,0.00014206,2]
[419934515,1775519464458,-151.0,0.00014206,2]
[419934516,1775519464468,-151.0,0.00014206,2]
[419934517,1775519464478,-785.79,0.00014206,2]
[419934518,1775519464487,-151.0,0.00014209,2]
[419934519,1775519464497,-260.22966,0.00014209,2]